[Event "*** SCC Grand Prix: Titled Tuesday Blitz"]
[Site "Chess.com"]
[Date "2020.07.14"]
[Round "8"]
[White "LuckSlayeer"]
[Black "ItsCheckM8Mate"]
[Result "0-1"]
[WhiteElo "2387"]
[BlackElo "2280"]
[TimeControl "180+1"]
[EndTime "11:36:52 PDT"]
[Termination "ItsCheckM8Mate won on time"]

1. e4 {[%clk 0:03:00.5]} 1... e5 {[%clk 0:02:57.9]} 2. Nf3 {[%clk 0:03:00.6]}
2... Nc6 {[%clk 0:02:57.2]} 3. d4 {[%clk 0:03:00.4]} 3... exd4 {[%clk
0:02:56.5]} 4. Nxd4 {[%clk 0:03:01.3]} 4... Nf6 {[%clk 0:02:56.1]} 5. Nxc6
{[%clk 0:03:01.2]} 5... bxc6 {[%clk 0:02:55.6]} 6. e5 {[%clk 0:03:01.7]} 6...
Qe7 {[%clk 0:02:55.6]} 7. Qe2 {[%clk 0:03:02.1]} 7... Nd5 {[%clk 0:02:55.1]} 8.
c4 {[%clk 0:03:02.7]} 8... Ba6 {[%clk 0:02:54.5]} 9. b3 {[%clk 0:03:03]} 9... g6
{[%clk 0:02:52.1]} 10. Bb2 {[%clk 0:02:47.6]} 10... Bg7 {[%clk 0:02:50.7]} 11.
g3 {[%clk 0:02:45.1]} 11... O-O {[%clk 0:02:50.7]} 12. Bg2 {[%clk 0:02:44.9]}
12... Rae8 {[%clk 0:02:50.1]} 13. O-O {[%clk 0:02:44]} 13... Bxe5 {[%clk
0:02:50]} 14. Bxe5 {[%clk 0:02:44.1]} 14... Qxe5 {[%clk 0:02:50.9]} 15. Qxe5
{[%clk 0:02:44.4]} 15... Rxe5 {[%clk 0:02:51.8]} 16. cxd5 {[%clk 0:02:45.1]}
16... Bxf1 {[%clk 0:02:51.9]} 17. Kxf1 {[%clk 0:02:44]} 17... cxd5 {[%clk
0:02:52.3]} 18. Nc3 {[%clk 0:02:44.3]} 18... c6 {[%clk 0:02:52.5]} 19. Rd1
{[%clk 0:02:44.3]} 19... Rfe8 {[%clk 0:02:47.1]} 20. Bf3 {[%clk 0:02:33.9]}
20... Kf8 {[%clk 0:02:41.5]} 21. Na4 {[%clk 0:02:28.1]} 21... Ke7 {[%clk
0:02:36]} 22. Nc5 {[%clk 0:02:26.8]} 22... Kd6 {[%clk 0:02:35.9]} 23. b4 {[%clk
0:02:21.9]} 23... Rb8 {[%clk 0:02:30.6]} 24. a3 {[%clk 0:02:13.4]} 24... a5
{[%clk 0:02:22]} 25. Nd3 {[%clk 0:01:53.4]} 25... Ree8 {[%clk 0:02:21]} 26. h4
{[%clk 0:01:32.7]} 26... axb4 {[%clk 0:02:18]} 27. axb4 {[%clk 0:01:33.6]} 27...
Ra8 {[%clk 0:02:13.7]} 28. Kg2 {[%clk 0:01:31.4]} 28... Ra3 {[%clk 0:02:11.1]}
29. h5 {[%clk 0:01:27.9]} 29... Rb3 {[%clk 0:02:09.3]} 30. h6 {[%clk 0:01:21]}
30... Ra8 {[%clk 0:02:04.3]} 31. Be2 {[%clk 0:01:03.6]} 31... Kc7 {[%clk
0:01:47.7]} 32. Nc5 {[%clk 0:00:58.3]} 32... Rb2 {[%clk 0:01:40.6]} 33. Bf1
{[%clk 0:00:58.4]} 33... Raa2 {[%clk 0:01:31.7]} 34. Nd3 {[%clk 0:00:58.6]}
34... Rd2 {[%clk 0:01:27.6]} 35. Re1 {[%clk 0:00:58.5]} 35... Kd6 {[%clk
0:01:19.8]} 36. Re8 {[%clk 0:00:58.6]} 36... Ra3 {[%clk 0:00:53.3]} 37. Nc5
{[%clk 0:00:31.7]} 37... Raa2 {[%clk 0:00:51.5]} 38. Nd3 {[%clk 0:00:20.1]}
38... Ra3 {[%clk 0:00:39.6]} 39. Nf4 {[%clk 0:00:15.4]} 39... Raa2 {[%clk
0:00:37.8]} 40. Nh3 {[%clk 0:00:15.5]} 40... g5 {[%clk 0:00:25]} 41. Nxg5 {[%clk
0:00:07.6]} 41... Rxf2+ {[%clk 0:00:24.4]} 42. Kg1 {[%clk 0:00:08.2]} 42... Rf6
{[%clk 0:00:19.6]} 43. Rh8 {[%clk 0:00:03.9]} 43... Ra1 {[%clk 0:00:18.6]} 44.
Rxh7 {[%clk 0:00:02.7]} 44... Raxf1+ {[%clk 0:00:18.6]} 45. Kg2 {[%clk
0:00:03.3]} 45... R6f2+ {[%clk 0:00:16.5]} 46. Kh3 {[%clk 0:00:03.8]} 46... f5
{[%clk 0:00:16.8]} 0-1

[Event "*** SCC Grand Prix: Titled Tuesday Blitz"]
[Site "Chess.com"]
[Date "2020.07.14"]
[Round "8"]
[White "crazychessbr"]
[Black "mfwagnerpeixoto"]
[Result "1-0"]
[WhiteElo "2087"]
[BlackElo "2228"]
[TimeControl "180+1"]
[EndTime "11:36:54 PDT"]
[Termination "crazychessbr won by resignation"]

1. e4 {[%clk 0:03:00.9]} 1... c5 {[%clk 0:02:58.7]} 2. d3 {[%clk 0:03:00.8]}
2... g6 {[%clk 0:02:54.9]} 3. g3 {[%clk 0:03:01.3]} 3... Bg7 {[%clk 0:02:55.2]}
4. Bg2 {[%clk 0:03:01.8]} 4... Nc6 {[%clk 0:02:55.9]} 5. f4 {[%clk 0:03:02.2]}
5... e6 {[%clk 0:02:54.9]} 6. Nf3 {[%clk 0:03:02.8]} 6... Nge7 {[%clk 0:02:55]}
7. O-O {[%clk 0:03:03.4]} 7... d6 {[%clk 0:02:55.1]} 8. c3 {[%clk 0:02:59.8]}
8... O-O {[%clk 0:02:54.4]} 9. Be3 {[%clk 0:02:59.9]} 9... Rb8 {[%clk
0:02:50.7]} 10. d4 {[%clk 0:02:58.8]} 10... cxd4 {[%clk 0:02:50]} 11. cxd4
{[%clk 0:02:59.3]} 11... d5 {[%clk 0:02:50.2]} 12. e5 {[%clk 0:02:59.6]} 12...
Nf5 {[%clk 0:02:49.5]} 13. Bf2 {[%clk 0:03:00.1]} 13... h5 {[%clk 0:02:45.6]}
14. h3 {[%clk 0:02:59.6]} 14... b6 {[%clk 0:02:43.7]} 15. g4 {[%clk 0:02:59.9]}
15... hxg4 {[%clk 0:02:43.2]} 16. hxg4 {[%clk 0:03:00.8]} 16... Nh6 {[%clk
0:02:42.6]} 17. Nh2 {[%clk 0:02:39.3]} 17... Ba6 {[%clk 0:02:29.8]} 18. Re1
{[%clk 0:02:38.3]} 18... f6 {[%clk 0:02:19.3]} 19. exf6 {[%clk 0:02:29.7]} 19...
Qxf6 {[%clk 0:02:20.2]} 20. g5 {[%clk 0:02:29.2]} 20... Qxf4 {[%clk 0:02:19.6]}
21. Be3 {[%clk 0:02:24.2]} 21... Bxd4 {[%clk 0:02:00]} 22. Bxd4 {[%clk
0:02:08.4]} 22... Nxd4 {[%clk 0:01:53.8]} 23. gxh6 {[%clk 0:02:07]} 23... Qf2+
{[%clk 0:01:47.5]} 24. Kh1 {[%clk 0:02:00.3]} 24... Nf5 {[%clk 0:01:28.7]} 25.
Ng4 {[%clk 0:01:33.7]} 25... Qh4+ {[%clk 0:01:08.2]} 26. Kg1 {[%clk 0:01:33.1]}
26... Rbe8 {[%clk 0:00:30.4]} 27. Nc3 {[%clk 0:00:56.8]} 27... Nxh6 {[%clk
0:00:24.3]} 28. Nxh6+ {[%clk 0:00:26.7]} 28... Qxh6 {[%clk 0:00:25.2]} 29. Qg4
{[%clk 0:00:22.3]} 29... Bc8 {[%clk 0:00:17.2]} 30. Qg3 {[%clk 0:00:17.4]} 30...
Qg7 {[%clk 0:00:12.7]} 31. Qe5 {[%clk 0:00:15.7]} 31... Qxe5 {[%clk 0:00:10.6]}
32. Rxe5 {[%clk 0:00:16.6]} 32... Bd7 {[%clk 0:00:08.7]} 33. Rae1 {[%clk
0:00:16.2]} 33... Kg7 {[%clk 0:00:09.2]} 34. Bf1 {[%clk 0:00:12.6]} 34... Kf6
{[%clk 0:00:08.9]} 35. Nb5 {[%clk 0:00:12.4]} 35... Bxb5 {[%clk 0:00:07.8]} 36.
Bxb5 {[%clk 0:00:13.3]} 36... Re7 {[%clk 0:00:07.7]} 37. Bd3 {[%clk 0:00:10.6]}
37... Kg7 {[%clk 0:00:04.5]} 38. R5e3 {[%clk 0:00:10.6]} 38... Rf6 {[%clk
0:00:03.5]} 39. Rg3 {[%clk 0:00:10.6]} 39... Kf7 {[%clk 0:00:04.2]} 40. Re5
{[%clk 0:00:10.6]} 40... Rd7 {[%clk 0:00:03.5]} 41. Reg5 {[%clk 0:00:10.7]}
41... Re7 {[%clk 0:00:04.4]} 42. Bxg6+ {[%clk 0:00:10.6]} 42... Rxg6 {[%clk
0:00:05.3]} 43. Rxg6 {[%clk 0:00:11.2]} 43... e5 {[%clk 0:00:04.5]} 44. Rg7+
{[%clk 0:00:11.5]} 44... Kf6 {[%clk 0:00:05.2]} 45. Rxe7 {[%clk 0:00:12.4]}
45... Kxe7 {[%clk 0:00:05.4]} 46. Rg5 {[%clk 0:00:12.4]} 46... Kf6 {[%clk
0:00:05.3]} 47. Rh5 {[%clk 0:00:13]} 47... d4 {[%clk 0:00:05.7]} 48. Kf2 {[%clk
0:00:13.1]} 1-0

[Event "*** SCC Grand Prix: Titled Tuesday Blitz"]
[Site "Chess.com"]
[Date "2020.07.14"]
[Round "8"]
[White "2900tactinhos"]
[Black "Aguiar94"]
[Result "1-0"]
[WhiteElo "2442"]
[BlackElo "2537"]
[TimeControl "180+1"]
[EndTime "11:36:56 PDT"]
[Termination "2900tactinhos won by resignation"]

1. d4 {[%clk 0:02:57.3]} 1... Nf6 {[%clk 0:02:59.6]} 2. c4 {[%clk 0:02:57.2]}
2... e6 {[%clk 0:02:59.9]} 3. Nf3 {[%clk 0:02:57.2]} 3... b6 {[%clk 0:02:59.5]}
4. g3 {[%clk 0:02:57.1]} 4... Ba6 {[%clk 0:02:59.8]} 5. b3 {[%clk 0:02:57]} 5...
b5 {[%clk 0:02:59.6]} 6. Bg2 {[%clk 0:02:53.8]} 6... bxc4 {[%clk 0:02:59.3]} 7.
O-O {[%clk 0:02:53]} 7... cxb3 {[%clk 0:02:56.4]} 8. axb3 {[%clk 0:02:53.1]}
8... Bb7 {[%clk 0:02:56.5]} 9. Nc3 {[%clk 0:02:53.1]} 9... Bb4 {[%clk
0:02:53.8]} 10. Qc2 {[%clk 0:02:42.2]} 10... O-O {[%clk 0:02:52]} 11. Rd1 {[%clk
0:02:40.7]} 11... a5 {[%clk 0:02:41.6]} 12. Bg5 {[%clk 0:02:35.4]} 12... h6
{[%clk 0:02:40]} 13. Bxf6 {[%clk 0:02:26.5]} 13... Qxf6 {[%clk 0:02:40.9]} 14.
Ng5 {[%clk 0:02:25.3]} 14... Qxg5 {[%clk 0:02:40.9]} 15. Bxb7 {[%clk 0:02:25.1]}
15... Ra7 {[%clk 0:02:41.4]} 16. Bf3 {[%clk 0:02:15.9]} 16... d5 {[%clk
0:02:40.5]} 17. e4 {[%clk 0:02:08.5]} 17... c6 {[%clk 0:02:38.4]} 18. Na4 {[%clk
0:02:04.9]} 18... Qe7 {[%clk 0:02:12.4]} 19. Rac1 {[%clk 0:01:54.3]} 19... Ba3
{[%clk 0:02:01]} 20. Rb1 {[%clk 0:01:53]} 20... Rc7 {[%clk 0:01:51.8]} 21. Kg2
{[%clk 0:01:52.2]} 21... Na6 {[%clk 0:01:50.5]} 22. Qe2 {[%clk 0:01:40.3]} 22...
Ra8 {[%clk 0:01:38.4]} 23. h4 {[%clk 0:01:37.8]} 23... Rb7 {[%clk 0:01:25.6]}
24. Rd2 {[%clk 0:01:29.4]} 24... Bd6 {[%clk 0:01:18.6]} 25. Rc2 {[%clk
0:01:24.5]} 25... Nb4 {[%clk 0:01:18.3]} 26. Rcc1 {[%clk 0:01:23.6]} 26... Qd8
{[%clk 0:01:15.2]} 27. Nc5 {[%clk 0:01:22.8]} 27... Rbb8 {[%clk 0:01:12.5]} 28.
e5 {[%clk 0:01:20.8]} 28... Be7 {[%clk 0:01:10.7]} 29. Bh5 {[%clk 0:01:20]}
29... Rb5 {[%clk 0:01:09.7]} 30. Bxf7+ {[%clk 0:01:06.5]} 30... Kxf7 {[%clk
0:01:09.3]} 31. Qf3+ {[%clk 0:01:06.8]} 31... Kg8 {[%clk 0:01:09]} 32. Nxe6
{[%clk 0:01:06.7]} 32... Qd7 {[%clk 0:00:59.7]} 33. Qg4 {[%clk 0:01:06.5]} 33...
Bf8 {[%clk 0:00:58.3]} 34. f4 {[%clk 0:01:05.3]} 34... a4 {[%clk 0:00:39.6]} 35.
bxa4 {[%clk 0:01:04.4]} 35... Rxa4 {[%clk 0:00:40.5]} 36. Rb2 {[%clk 0:00:57.1]}
36... Raa5 {[%clk 0:00:27]} 37. Rc3 {[%clk 0:00:45.2]} 37... Na2 {[%clk
0:00:23.9]} 38. Rxb5 {[%clk 0:00:44.3]} 38... Rxb5 {[%clk 0:00:24.6]} 39. Rc2
{[%clk 0:00:43.7]} 39... Nb4 {[%clk 0:00:24.9]} 40. Rd2 {[%clk 0:00:41.8]} 40...
Na6 {[%clk 0:00:23]} 41. f5 {[%clk 0:00:41]} 41... Rb4 {[%clk 0:00:19.4]} 42.
Ra2 {[%clk 0:00:38.6]} 42... Rb6 {[%clk 0:00:17.6]} 43. Qe2 {[%clk 0:00:35.5]}
43... Nb4 {[%clk 0:00:14.7]} 44. Ra8 {[%clk 0:00:34.5]} 44... Rb7 {[%clk
0:00:09.4]} 45. Rxf8+ {[%clk 0:00:33.4]} 45... Kh7 {[%clk 0:00:09.9]} 46. Qh5
{[%clk 0:00:33.3]} 1-0

[Event "*** SCC Grand Prix: Titled Tuesday Blitz"]
[Site "Chess.com"]
[Date "2020.07.14"]
[Round "8"]
[White "snap_man"]
[Black "NotFischer"]
[Result "1-0"]
[WhiteElo "2308"]
[BlackElo "2133"]
[TimeControl "180+1"]
[EndTime "11:36:56 PDT"]
[Termination "snap_man won by resignation"]

1. Nf3 {[%clk 0:03:00.9]} 1... Nf6 {[%clk 0:02:58.7]} 2. g3 {[%clk 0:03:01.1]}
2... d6 {[%clk 0:02:58.1]} 3. b3 {[%clk 0:03:01]} 3... e5 {[%clk 0:02:57.6]} 4.
Bg2 {[%clk 0:03:00.6]} 4... c6 {[%clk 0:02:58]} 5. Bb2 {[%clk 0:03:00.6]} 5...
Nbd7 {[%clk 0:02:57.2]} 6. O-O {[%clk 0:03:00.9]} 6... Be7 {[%clk 0:02:57.6]} 7.
c4 {[%clk 0:03:00.8]} 7... O-O {[%clk 0:02:57.7]} 8. d4 {[%clk 0:02:59.8]} 8...
Qc7 {[%clk 0:02:58]} 9. Nc3 {[%clk 0:02:51.4]} 9... Re8 {[%clk 0:02:57.5]} 10.
e4 {[%clk 0:02:46.7]} 10... a5 {[%clk 0:02:46.7]} 11. Re1 {[%clk 0:02:19.6]}
11... Bf8 {[%clk 0:02:45.6]} 12. d5 {[%clk 0:02:18.7]} 12... cxd5 {[%clk
0:02:44.8]} 13. Nxd5 {[%clk 0:02:10.9]} 13... Nxd5 {[%clk 0:02:44.2]} 14. Qxd5
{[%clk 0:02:06.7]} 14... Nf6 {[%clk 0:02:43.7]} 15. Qd2 {[%clk 0:02:06.4]} 15...
Bd7 {[%clk 0:02:17.5]} 16. Rac1 {[%clk 0:02:05.2]} 16... Bc6 {[%clk 0:02:16]}
17. Qd3 {[%clk 0:02:02.8]} 17... Qb6 {[%clk 0:02:02.3]} 18. c5 {[%clk
0:01:53.3]} 18... Qc7 {[%clk 0:01:46.7]} 19. Qc4 {[%clk 0:01:48.5]} 19... d5
{[%clk 0:01:32.2]} 20. exd5 {[%clk 0:01:35.7]} 20... Bxd5 {[%clk 0:01:32.4]} 21.
Qc3 {[%clk 0:01:27.2]} 21... Qc6 {[%clk 0:01:32.3]} 22. Rxe5 {[%clk 0:00:58.8]}
22... Nd7 {[%clk 0:01:16.8]} 23. Rg5 {[%clk 0:00:55]} 23... f6 {[%clk 0:01:10]}
24. Nd4 {[%clk 0:00:51.1]} 24... fxg5 {[%clk 0:00:49]} 25. Nxc6 {[%clk
0:00:50.2]} 25... Bxc6 {[%clk 0:00:49.9]} 26. Bxc6 {[%clk 0:00:45.1]} 26... bxc6
{[%clk 0:00:50.8]} 27. Rd1 {[%clk 0:00:41.3]} 27... Nxc5 {[%clk 0:00:48.5]} 28.
Qc4+ {[%clk 0:00:37.9]} 28... Kh8 {[%clk 0:00:47.6]} 29. Ba3 {[%clk 0:00:35.9]}
29... Ne6 {[%clk 0:00:24.3]} 30. Bxf8 {[%clk 0:00:35]} 30... Nxf8 {[%clk
0:00:25.2]} 31. Qxc6 {[%clk 0:00:35.1]} 31... Rac8 {[%clk 0:00:24]} 32. Qb5
{[%clk 0:00:34.8]} 32... Ne6 {[%clk 0:00:12.2]} 33. Re1 {[%clk 0:00:34.1]} 33...
g4 {[%clk 0:00:11.8]} 34. Qxa5 {[%clk 0:00:33.8]} 34... Nd4 {[%clk 0:00:11]} 35.
Rxe8+ {[%clk 0:00:27.1]} 35... Rxe8 {[%clk 0:00:11.9]} 36. Qc5 {[%clk
0:00:24.7]} 36... Nf3+ {[%clk 0:00:11.9]} 37. Kg2 {[%clk 0:00:23.9]} 37... Ne1+
{[%clk 0:00:10.7]} 38. Kf1 {[%clk 0:00:24.1]} 38... Nf3 {[%clk 0:00:11.1]} 39.
Qb4 {[%clk 0:00:19.5]} 39... Nxh2+ {[%clk 0:00:07.3]} 40. Kg2 {[%clk 0:00:18.7]}
40... Nf3 {[%clk 0:00:06.3]} 41. a4 {[%clk 0:00:18.9]} 41... Ne1+ {[%clk
0:00:05.6]} 42. Kf1 {[%clk 0:00:18.2]} 42... Nd3 {[%clk 0:00:05.7]} 43. Qxg4
{[%clk 0:00:17.7]} 43... Re1+ {[%clk 0:00:05.2]} 44. Kg2 {[%clk 0:00:17.6]}
44... h6 {[%clk 0:00:05.1]} 45. Qc8+ {[%clk 0:00:16.4]} 45... Kh7 {[%clk
0:00:05.6]} 46. Qf5+ {[%clk 0:00:17]} 1-0

[Event "*** SCC Grand Prix: Titled Tuesday Blitz"]
[Site "Chess.com"]
[Date "2020.07.14"]
[Round "8"]
[White "vaishali2001"]
[Black "Evgeny81"]
[Result "0-1"]
[WhiteElo "2605"]
[BlackElo "2743"]
[TimeControl "180+1"]
[EndTime "11:36:58 PDT"]
[Termination "Evgeny81 won by resignation"]

1. e4 {[%clk 0:03:00.9]} 1... e5 {[%clk 0:02:59.9]} 2. Nf3 {[%clk 0:03:00]} 2...
Nc6 {[%clk 0:03:00.6]} 3. Nc3 {[%clk 0:02:56.3]} 3... Nf6 {[%clk 0:03:00.6]} 4.
Bb5 {[%clk 0:02:56.3]} 4... Bd6 {[%clk 0:02:57.6]} 5. d3 {[%clk 0:02:55]} 5...
h6 {[%clk 0:02:51.7]} 6. O-O {[%clk 0:02:53.5]} 6... O-O {[%clk 0:02:50.3]} 7.
h3 {[%clk 0:02:52.7]} 7... Re8 {[%clk 0:02:48.8]} 8. a3 {[%clk 0:02:48.6]} 8...
Bf8 {[%clk 0:02:47.8]} 9. Re1 {[%clk 0:02:24.9]} 9... Nd4 {[%clk 0:02:43.2]} 10.
Nxd4 {[%clk 0:02:24.3]} 10... exd4 {[%clk 0:02:44.1]} 11. Ne2 {[%clk 0:02:22.4]}
11... c6 {[%clk 0:02:42.4]} 12. Ba4 {[%clk 0:02:22.1]} 12... d5 {[%clk
0:02:38.5]} 13. Nxd4 {[%clk 0:01:54.2]} 13... dxe4 {[%clk 0:02:32.7]} 14. dxe4
{[%clk 0:01:55.1]} 14... Rxe4 {[%clk 0:02:14.1]} 15. Rxe4 {[%clk 0:01:44.6]}
15... Nxe4 {[%clk 0:02:15]} 16. Be3 {[%clk 0:01:44.8]} 16... Nc5 {[%clk
0:02:04.5]} 17. c3 {[%clk 0:01:23.4]} 17... Nxa4 {[%clk 0:02:02.6]} 18. Qxa4
{[%clk 0:01:24.3]} 18... c5 {[%clk 0:01:53.7]} 19. Nf3 {[%clk 0:01:13.1]} 19...
b6 {[%clk 0:01:51.9]} 20. Rd1 {[%clk 0:01:09.5]} 20... Qe7 {[%clk 0:01:41.2]}
21. Bf4 {[%clk 0:00:36.5]} 21... Be6 {[%clk 0:01:26.9]} 22. Bd6 {[%clk
0:00:30.1]} 22... Qe8 {[%clk 0:01:22.4]} 23. Qxe8 {[%clk 0:00:16.2]} 23... Rxe8
{[%clk 0:01:23.3]} 24. Bxf8 {[%clk 0:00:16.8]} 24... Kxf8 {[%clk 0:01:24.2]} 25.
Rd2 {[%clk 0:00:11.8]} 25... Ke7 {[%clk 0:01:21.6]} 26. Ne5 {[%clk 0:00:09.4]}
26... Rc8 {[%clk 0:01:18]} 27. Ng4 {[%clk 0:00:08.9]} 27... Bxg4 {[%clk
0:00:55.9]} 28. hxg4 {[%clk 0:00:09.8]} 28... Rc6 {[%clk 0:00:55.7]} 29. f3
{[%clk 0:00:08.9]} 29... Re6 {[%clk 0:00:54.9]} 30. Kf2 {[%clk 0:00:09]} 30...
g6 {[%clk 0:00:51.9]} 31. c4 {[%clk 0:00:09.1]} 31... Re5 {[%clk 0:00:44.8]} 32.
Rd3 {[%clk 0:00:09.2]} 32... h5 {[%clk 0:00:42.6]} 33. gxh5 {[%clk 0:00:07.1]}
33... Rxh5 {[%clk 0:00:43.5]} 34. b4 {[%clk 0:00:03.3]} 34... cxb4 {[%clk
0:00:35]} 35. axb4 {[%clk 0:00:04.2]} 35... a5 {[%clk 0:00:35.7]} 36. c5 {[%clk
0:00:03.6]} 36... axb4 {[%clk 0:00:34.3]} 37. cxb6 {[%clk 0:00:04]} 37... Rb5
{[%clk 0:00:34.3]} 38. Rb3 {[%clk 0:00:03.9]} 38... Rxb6 {[%clk 0:00:34.1]} 39.
Ke3 {[%clk 0:00:04.4]} 39... Kd6 {[%clk 0:00:33.5]} 40. Kd4 {[%clk 0:00:04.7]}
40... g5 {[%clk 0:00:33]} 41. g3 {[%clk 0:00:04.5]} 41... f5 {[%clk 0:00:30.9]}
42. f4 {[%clk 0:00:04]} 42... g4 {[%clk 0:00:31.2]} 43. Kc4 {[%clk 0:00:03.3]}
43... Kc6 {[%clk 0:00:28.8]} 44. Kd4 {[%clk 0:00:01.9]} 44... Kb5 {[%clk
0:00:26.4]} 45. Ke5 {[%clk 0:00:01.1]} 45... Kc4 {[%clk 0:00:26.6]} 46. Rb1
{[%clk 0:00:01.2]} 46... Rb5+ {[%clk 0:00:27.1]} 47. Kf6 {[%clk 0:00:01.4]}
47... b3 {[%clk 0:00:27]} 48. Kg5 {[%clk 0:00:02]} 48... Kc3 {[%clk 0:00:27]}
49. Kf6 {[%clk 0:00:02]} 49... Kc2 {[%clk 0:00:27.1]} 50. Rf1 {[%clk 0:00:01.6]}
50... b2 {[%clk 0:00:27.6]} 51. Kg5 {[%clk 0:00:02.1]} 51... b1=Q {[%clk
0:00:27.3]} 0-1

[Event "*** SCC Grand Prix: Titled Tuesday Blitz"]
[Site "Chess.com"]
[Date "2020.07.14"]
[Round "8"]
[White "Chessbard1972"]
[Black "secretsuperstar7"]
[Result "1-0"]
[WhiteElo "2261"]
[BlackElo "2101"]
[TimeControl "180+1"]
[EndTime "11:36:58 PDT"]
[Termination "Chessbard1972 won on time"]

1. d4 {[%clk 0:02:55.1]} 1... Nf6 {[%clk 0:02:58.6]} 2. c4 {[%clk 0:02:52.2]}
2... e6 {[%clk 0:02:58.5]} 3. Nf3 {[%clk 0:02:48]} 3... Bb4+ {[%clk 0:02:58.2]}
4. Nbd2 {[%clk 0:02:46.7]} 4... d5 {[%clk 0:02:57.2]} 5. a3 {[%clk 0:02:43.5]}
5... Be7 {[%clk 0:02:51.2]} 6. c5 {[%clk 0:02:42.3]} 6... b6 {[%clk 0:02:46.6]}
7. b4 {[%clk 0:02:40.2]} 7... a5 {[%clk 0:02:45.7]} 8. Bb2 {[%clk 0:02:40.1]}
8... Ba6 {[%clk 0:02:26.6]} 9. g3 {[%clk 0:02:35.3]} 9... O-O {[%clk 0:02:23.4]}
10. Bg2 {[%clk 0:02:32.8]} 10... Ne4 {[%clk 0:02:14.4]} 11. O-O {[%clk
0:02:31.3]} 11... Bf6 {[%clk 0:01:55.1]} 12. Rc1 {[%clk 0:02:26.8]} 12... g6
{[%clk 0:01:46.6]} 13. Ne5 {[%clk 0:02:19]} 13... Nxd2 {[%clk 0:01:19.8]} 14.
Qxd2 {[%clk 0:02:18.4]} 14... Nd7 {[%clk 0:01:15]} 15. f4 {[%clk 0:02:09.4]}
15... Nxe5 {[%clk 0:01:12.7]} 16. fxe5 {[%clk 0:02:08.4]} 16... Bg5 {[%clk
0:01:12]} 17. Qc2 {[%clk 0:02:01]} 17... Bxc1 {[%clk 0:01:11.2]} 18. Bxc1 {[%clk
0:02:01.1]} 18... f6 {[%clk 0:01:11.3]} 19. Bh6 {[%clk 0:01:45.7]} 19... Rf7
{[%clk 0:01:02.8]} 20. Bh3 {[%clk 0:01:45.1]} 20... f5 {[%clk 0:00:45.3]} 21.
Qd2 {[%clk 0:01:42.4]} 21... axb4 {[%clk 0:00:41.1]} 22. axb4 {[%clk 0:01:41.2]}
22... bxc5 {[%clk 0:00:40.9]} 23. bxc5 {[%clk 0:01:39.1]} 23... Bc4 {[%clk
0:00:40.8]} 24. Rb1 {[%clk 0:01:32.6]} 24... Ra2 {[%clk 0:00:31.2]} 25. Qg5
{[%clk 0:01:31.4]} 25... Qa8 {[%clk 0:00:11.6]} 26. e3 {[%clk 0:01:20.3]} 26...
Ra1 {[%clk 0:00:10.8]} 27. Rxa1 {[%clk 0:00:59.1]} 27... Qxa1+ {[%clk
0:00:11.7]} 28. Kf2 {[%clk 0:00:57.8]} 28... Qa2+ {[%clk 0:00:09.4]} 29. Kg1
{[%clk 0:00:53.8]} 29... Qb1+ {[%clk 0:00:09]} 30. Kf2 {[%clk 0:00:51.4]} 30...
Qc2+ {[%clk 0:00:08.8]} 31. Kg1 {[%clk 0:00:48]} 31... Qd1+ {[%clk 0:00:08.3]}
32. Kf2 {[%clk 0:00:41.2]} 32... Qc2+ {[%clk 0:00:08.2]} 33. Kg1 {[%clk
0:00:37.7]} 33... Qb1+ {[%clk 0:00:08.1]} 34. Kf2 {[%clk 0:00:37.1]} 34... Qa2+
{[%clk 0:00:07.8]} 35. Kg1 {[%clk 0:00:35]} 35... Qa8 {[%clk 0:00:08.4]} 36. Bg2
{[%clk 0:00:29]} 36... c6 {[%clk 0:00:07]} 37. h4 {[%clk 0:00:28.4]} 37... Bd3
{[%clk 0:00:03.5]} 38. h5 {[%clk 0:00:27.7]} 38... Kh8 {[%clk 0:00:03.2]} 39.
hxg6 {[%clk 0:00:27.2]} 39... hxg6 {[%clk 0:00:02.7]} 40. Qxg6 {[%clk
0:00:26.6]} 40... Qg8 {[%clk 0:00:02.7]} 41. Qxe6 {[%clk 0:00:24.2]} 41... Qh7
{[%clk 0:00:02]} 42. Qe8+ {[%clk 0:00:21.6]} 42... Qg8 {[%clk 0:00:02.3]} 43.
Qxc6 {[%clk 0:00:19.3]} 43... Qxg3 {[%clk 0:00:01.8]} 44. Qe8+ {[%clk
0:00:12.2]} 44... Qg8 {[%clk 0:00:01.7]} 45. Qe6 {[%clk 0:00:08.1]} 45... Be4
{[%clk 0:00:01.3]} 46. Kf2 {[%clk 0:00:01.7]} 1-0